bitfinex/quotes_ETHUSD_20240910
["timestamp","ask_amount","ask_price","bid_price","bid_amount"]
[1725927372409,0.05809445,2353.2,2352.9,2.4396]
[1725927372769,3.24867585,2353.1,2352.8,0.4]
[1725927373020,1.3428,2353.0,2352.8,0.4]
[1725927373202,1.3428,2353.0,2352.2,0.00080425]
[1725927373203,0.55,2352.9,2352.2,0.00080425]
[1725927373512,3.24867585,2352.3,2352.2,0.00080425]
[1725927373734,0.09605092,2352.8,2351.8,2.46993427]
[1725927373874,0.09605092,2352.8,2351.9,0.24699343]
[1725927373875,0.05723262,2352.3,2351.9,0.24699343]
[1725927374071,0.09605092,2352.9,2352.0,0.08501678]
[1725927374275,0.05719086,2352.2,2351.6,2.0]
[1725927374614,0.09605092,2352.9,2351.6,2.0]
[1725927375112,1.3569,2353.4,2351.6,2.0]
[1725927375113,3.24867585,2352.7,2351.6,2.0]
[1725927375274,0.05725252,2352.8,2351.6,2.0]
[1725927375479,0.05722763,2352.6,2351.7,0.5]
[1725927375706,0.09605092,2353.2,2351.6,2.0]
[1725927375912,0.05724449,2352.5,2351.6,2.0]
[1725927376082,0.55,2353.3,2351.6,2.0]
[1725927376083,0.09605092,2353.0,2351.6,2.0]
[1725927376288,0.09605092,2353.0,2351.5,2.0]
[1725927376494,4.004069,2352.7,2351.5,2.0]
[1725927376820,0.15142867,2352.6,2351.3,2.3365]
[1725927376993,0.15142867,2352.6,2351.5,2.3365]
[1725927377319,0.09605092,2353.2,2351.8,2.3365]
[1725927377526,4.004069,2352.8,2351.8,5.3365]
[1725927377678,0.09605092,2352.7,2351.8,2.3365]
[1725927377883,0.15143786,2352.7,2351.8,2.3365]
[1725927378196,0.56698855,2352.7,2351.8,2.87015]
[1725927379924,0.15143786,2352.7,2351.8,2.87015]
[1725927380288,0.15143786,2352.7,2351.5,2.3386]
[1725927380491,0.55,2352.6,2351.5,2.3386]
[1725927380799,1.3569,2352.4,2350.8,2.764]
[1725927381026,7.27,2352.2,2350.8,2.3386]
[1725927381245,3.09605092,2352.1,2350.8,2.3386]
[1725927381540,1.03660509,2352.0,2350.9,0.50038742]
[1725927381695,0.09605092,2351.9,2350.9,0.50038742]
[1725927382036,1.3569,2351.8,2350.8,2.3386]
[1725927382240,0.09605092,2351.7,2350.3,0.5438718]
[1725927382442,0.09605092,2351.7,2350.3,0.1184718]
[1725927382443,0.55,2351.6,2350.3,0.1184718]
[1725927382591,0.09605092,2351.5,2350.3,0.1184718]
[1725927382795,0.14997365,2351.5,2350.3,0.1184718]
[1725927382992,0.05392273,2351.5,2350.5,2.0]
[1725927383294,0.05392273,2351.5,2350.6,2.3862]
[1725927383495,0.05392273,2351.5,2350.6,5.3862]
[1725927383739,0.09605092,2351.7,2350.6,5.3862]
[1725927383894,1.3569,2352.1,2350.6,5.3862]
[1725927383895,0.09605092,2352.0,2350.6,5.3862]
[1725927384100,0.05394496,2351.6,2350.8,2.0]
[1725927384339,0.09605092,2352.0,2350.8,2.0]
[1725927384639,0.05399211,2351.9,2350.9,2.3862]
[1725927385333,0.05399211,2351.9,2351.1,2.0]
[1725927385541,0.05399211,2351.9,2351.2,0.08503926]
[1725927385762,0.09605092,2352.3,2351.3,2.2742]
[1725927386116,0.05120704,2352.2,2351.3,2.2742]
[1725927386423,1.3569,2352.1,2350.7,2.2742]
[1725927386642,1.3569,2352.1,2350.8,0.08506026]
[1725927386643,0.09605092,2352.0,2350.8,0.08506026]
[1725927386797,0.14722654,2352.0,2350.7,2.2742]
[1725927386993,0.14722654,2352.0,2350.8,0.52742]
[1725927386994,0.09605092,2352.0,2350.8,0.52742]
[1725927387218,0.05110285,2351.9,2350.8,3.52742]
[1725927387452,1.3569,2352.1,2350.8,3.52742]
[1725927387599,0.05108714,2351.8,2350.8,3.52742]
[1725927387798,0.05111857,2352.0,2350.8,0.52742]
[1725927388005,0.05107143,2351.7,2350.7,2.2742]
[1725927388344,0.05110285,2351.9,2350.7,2.2742]
[1725927388513,0.05105571,2351.6,2350.7,2.2742]
[1725927388710,0.05108714,2351.8,2350.7,2.2742]
[1725927388952,0.05018936,2351.5,2350.7,2.2742]
[1725927389095,0.0502208,2351.7,2350.7,2.70162]
[1725927389295,0.05017365,2351.4,2350.7,2.70162]
[1725927389498,1.40710508,2351.6,2350.7,2.70162]
[1725927389733,0.09605092,2351.5,2350.7,2.70162]
[1725927389907,0.14624028,2351.5,2350.7,2.70162]
[1725927390114,0.05018936,2351.5,2350.8,0.35521934]
[1725927390623,0.05013941,2351.4,2350.8,3.270162]
[1725927390827,0.05013941,2351.4,2350.8,3.79927829]
[1725927391015,0.09605092,2351.9,2350.8,3.79927829]
[1725927391206,0.09605092,2351.9,2350.9,2.0]
[1725927391433,0.09605092,2351.9,2351.0,0.57992783]
[1725927391434,0.05027958,2351.8,2351.0,0.57992783]
[1725927391809,0.05027958,2351.8,2351.2,2.0]
[1725927392010,0.05027958,2351.8,2351.3,0.08503526]
[1725927392318,0.09605092,2352.2,2351.3,0.08503526]
[1725927392629,1.3569,2352.4,2351.4,0.52902944]
[1725927392804,0.0503267,2352.1,2351.3,3.0]
[1725927393013,1.3569,2352.4,2351.5,2.0]
[1725927393014,0.05035811,2352.3,2351.5,2.0]
[1725927393214,1.3569,2352.7,2351.6,0.0850247]
[1725927393416,0.05034241,2352.2,2351.7,2.97598557]
[1725927393663,1.3569,2353.0,2351.8,0.61399665]
[1725927393820,0.09605092,2352.9,2351.9,0.52896357]
[1725927394150,0.14507709,2352.9,2352.0,0.26139808]
[1725927394723,0.14507709,2352.9,2351.7,2.447]
[1725927394930,0.14507709,2352.9,2351.8,0.52896644]
[1725927395132,0.14507709,2352.9,2351.9,0.52896644]
[1725927395325,0.14507709,2352.9,2352.0,0.52897914]
[1725927395566,0.14507709,2352.9,2351.7,2.447]
[1725927395875,0.14507709,2352.9,2351.8,0.2447]
[1725927396054,0.14507709,2352.9,2351.9,0.0850146]
[1725927396776,0.04902617,2352.9,2351.9,0.0850146]
[1725927396979,0.04902617,2352.9,2351.8,5.2447]
[1725927397276,0.04902617,2352.9,2352.1,4.3105]
[1725927397461,0.04902617,2352.9,2352.2,3.8314569]
[1725927397627,1.45295092,2353.4,2352.3,0.0849973]
[1725927398137,1.45295092,2353.4,2352.2,3.8314569]
[1725927398138,0.14485408,2353.3,2352.2,3.8314569]
[1725927399226,0.14485408,2353.3,2352.2,0.8314569]
[1725927399443,1.3569,2353.1,2351.8,5.6319]
[1725927399682,0.09605092,2353.0,2351.8,5.6319]
[1725927399985,0.14662039,2353.0,2351.8,5.6319]
[1725927400656,1.35352039,2353.1,2351.8,5.6319]
[1725927400975,0.04878264,2352.9,2351.8,5.6319]
[1725927401140,0.04873564,2353.0,2351.9,0.56319]
[1725927401340,0.04870425,2352.8,2351.9,0.56319]
[1725927401652,0.04868285,2352.7,2351.9,3.56319]
[1725927401855,3.55,2353.2,2351.9,0.56319]
[1725927402030,0.04866715,2352.6,2351.9,0.56319]
[1725927402370,3.55,2353.2,2351.9,0.56319]
[1725927402583,0.04865145,2352.5,2351.9,0.56319]
[1725927402748,0.7554069,2353.1,2351.9,0.56319]
[1725927402935,0.04863575,2352.4,2351.9,0.56319]
[1725927403134,4.004069,2353.2,2351.9,0.56319]
[1725927403334,0.55,2353.1,2351.9,0.56319]
[1725927403530,3.59870003,2353.1,2351.9,0.56319]
[1725927403735,1.3535,2353.0,2351.9,0.56319]
[1725927403944,0.49522,2352.9,2351.9,0.56319]
[1725927404177,0.54388864,2352.9,2351.9,0.56319]
[1725927404396,1.3535,2352.8,2351.9,0.56319]
[1725927404689,0.04864376,2352.7,2351.6,3.0]
[1725927404887,0.04864376,2352.7,2351.5,2.4641]
[1725927406450,0.04864376,2352.7,2351.5,4.4641]
[1725927406646,0.04864376,2352.7,2351.6,3.44641]
[1725927407463,0.04864376,2352.7,2351.8,2.0]
[1725927407778,1.3535,2352.8,2351.9,2.3715]
[1725927408130,0.04692068,2352.7,2351.9,2.3715]
[1725927408556,1.3535,2352.8,2351.9,2.3715]
[1725927408752,0.0469599,2352.7,2352.0,0.43715]
[1725927408951,1.3535,2353.1,2352.0,0.43715]
[1725927409383,0.0471153,2353.0,2352.0,0.43715]
[1725927410062,0.0471153,2353.0,2352.1,2.0]
[1725927410268,0.0471153,2353.0,2352.2,0.543715]
[1725927411505,1.3535,2353.1,2352.2,0.543715]
[1725927414820,1.3535,2353.1,2352.3,0.08500062]
[1725927415021,1.3535,2353.1,2352.4,2.2909]
[1725927415225,1.3535,2353.1,2352.5,0.0849999]
[1725927415426,1.3535,2353.1,2352.5,0.32258989]
[1725927415727,0.0470696,2353.0,2352.5,0.32258989]
[1725927416593,1.3535,2353.4,2352.5,0.32258989]
[1725927417024,0.04711667,2353.3,2352.5,0.32258989]
[1725927419025,0.04711667,2353.3,2352.7,2.0]
[1725927419235,1.3535,2353.7,2352.9,2.4239]
[1725927419546,1.3535,2354.6,2353.0,0.08497167]
[1725927419852,1.3535,2354.6,2353.1,0.08496448]
[1725927420200,1.3535,2354.6,2353.0,5.4254]
[1725927420408,1.3535,2354.6,2353.4,2.0]
[1725927420615,0.04585981,2354.5,2353.5,0.0849541]
[1725927420904,1.3535,2354.4,2353.4,2.0]
[1725927421329,0.04580243,2354.3,2353.5,0.08495483]
[1725927421645,1.3535,2354.4,2353.5,2.3709]
[1725927421801,1.3535,2354.4,2353.6,0.43709]
[1725927422027,0.04573088,2354.3,2353.6,3.43709]
[1725927422352,0.04573088,2354.3,2353.7,2.08494709]
[1725927422553,1.3535,2354.9,2353.8,0.08494465]
[1725927422762,1.3535,2354.9,2353.7,2.0]
[1725927422933,0.0458483,2354.8,2353.8,0.543709]
[1725927424362,1.3535,2354.7,2353.8,0.543709]
[1725927424522,1.3535,2354.7,2353.9,0.08494366]
[1725927424724,0.04670592,2354.6,2353.9,0.08494366]
[1725927425138,1.3535,2354.7,2353.8,0.543709]
[1725927425318,1.3535,2354.7,2353.9,0.2543709]
[1725927425524,1.3535,2354.7,2354.0,0.08494263]
[1725927425937,1.3535,2355.0,2354.0,2.47014263]
[1725927426463,0.04707643,2354.9,2354.0,2.47014263]
[1725927426620,0.04707643,2354.9,2354.0,4.47014263]
[1725927426819,0.04707643,2354.9,2354.1,0.47245135]
[1725927427060,0.04707643,2354.9,2354.2,0.08492884]
[1725927428067,1.3535,2355.2,2354.3,2.0]
[1725927428659,0.04805536,2355.1,2354.3,2.0]
[1725927429166,0.04805536,2355.1,2354.5,2.2933]
[1725927429325,0.04805536,2355.1,2354.6,0.32274624]
[1725927429528,1.3535,2355.2,2354.6,0.32274624]
[1725927429958,0.04810913,2355.1,2354.6,0.32274624]
[1725927430125,0.04810913,2355.1,2354.6,0.23782239]
[1725927430330,1.3535,2355.2,2354.6,0.23782239]
[1725927430530,1.3535,2355.2,2354.3,2.0]
[1725927430769,0.04812132,2355.1,2354.3,2.0]
[1725927431831,0.04812132,2355.1,2354.1,2.73785135]
[1725927433459,1.3535,2355.0,2354.1,0.47245135]
[1725927433975,0.04807851,2354.9,2354.1,0.47245135]
[1725927434128,0.04807851,2354.9,2354.2,0.54724514]
[1725927435434,0.04807851,2354.9,2353.9,0.2543709]
[1725927437631,1.3535,2354.8,2353.9,0.2543709]
[1725927437943,0.0480015,2354.7,2353.9,0.2543709]
[1725927438134,1.3535,2354.6,2353.9,0.2543709]
[1725927438338,1.3535,2354.6,2354.0,0.08495087]
[1725927438537,0.04794591,2354.5,2354.0,0.08495087]
[1725927440337,0.04794591,2354.5,2353.9,0.2543709]
[1725927444274,0.04794591,2354.5,2354.2,3.24711442]
[1725927444449,0.04794591,2354.5,2354.3,2.68991144]
[1725927444774,1.3535,2354.9,2354.3,0.32471144]
[1725927445074,0.04460768,2354.8,2354.1,3.0]
[1725927446236,1.3535,2354.7,2353.9,0.2543709]
[1725927446480,0.04471557,2354.6,2353.9,0.2543709]
[1725927448338,0.04471557,2354.6,2354.0,2.41784533]
[1725927448576,0.04471557,2354.6,2354.0,7.66495975]
[1725927448748,1.3535,2355.6,2354.1,0.79193307]
[1725927449086,1.3535,2355.4,2354.1,0.79193307]
[1725927449377,1.3535,2355.4,2354.0,2.0]
[1725927449589,1.3535,2355.2,2353.4,4.3329]
[1725927449738,1.90364319,2355.1,2353.4,2.3329]
[1725927449942,1.96699093,2355.0,2353.1,4.3329]
[1725927450137,1.3535,2354.1,2353.1,4.3329]
[1725927450436,0.04307663,2354.0,2353.2,0.43329]
[1725927450838,0.04307663,2354.0,2353.2,0.28329]
[1725927451064,0.04307663,2354.0,2353.4,2.0]
[1725927451578,3.24711442,2354.7,2353.5,2.4884]
[1725927451887,1.72086062,2354.6,2353.6,0.44884]
[1725927452083,4.72086062,2354.6,2353.6,0.44884]
[1725927453479,4.72086062,2354.6,2353.6,0.87424]
[1725927453778,1.72086062,2354.6,2353.6,0.87424]
[1725927454168,1.39614918,2354.6,2353.6,0.87424]
[1725927454371,1.39614918,2354.6,2353.6,3.87424]
[1725927455801,1.39614918,2354.6,2353.7,0.52868435]
[1725927456104,1.39614918,2354.6,2353.8,0.52868435]
[1725927456306,1.39614918,2354.6,2353.6,3.44884]
[1725927456510,1.39614918,2354.6,2353.7,1.44711936]
[1725927456803,1.3535,2354.6,2353.7,0.91843544]
[1725927457005,1.3535,2354.6,2353.8,0.52868395]
[1725927457212,1.3535,2354.6,2353.5,3.0]
[1725927457501,1.3535,2354.4,2353.2,3.0]
[1725927457658,0.46436293,2354.3,2353.3,1.05609144]
[1725927457997,0.04295511,2354.3,2353.3,1.05609144]
[1725927458668,0.04295511,2354.3,2353.4,0.08495732]
[1725927458992,0.04295511,2354.3,2353.4,3.0]
[1725927459198,1.3535,2354.2,2353.4,3.0]
[1725927459373,1.3535,2354.2,2353.3,1.05609144]
[1725927459575,0.04292378,2354.1,2353.4,0.40560914]
[1725927461259,0.04292378,2354.1,2353.2,3.0]
[1725927461585,1.3535,2354.0,2353.2,5.0]
[1725927461769,1.3535,2354.0,2353.1,3.0]
[1725927461962,1.3535,2354.0,2353.0,2.11054917]
[1725927461963,0.04285824,2353.9,2353.0,5.11054917]
[1725927462159,1.3535,2354.0,2353.1,1.14221996]
[1725927462359,1.3535,2354.0,2353.2,2.62527691]
[1725927462566,1.3535,2354.0,2353.3,3.0]
[1725927462767,1.3535,2354.0,2353.4,4.38992374]
[1725927462995,1.3535,2354.0,2353.4,3.24711442]
[1725927463165,1.3535,2354.0,2353.5,3.0]
[1725927463372,1.3535,2354.0,2353.6,0.62471144]
[1725927463915,1.3535,2354.0,2353.4,3.0]
[1725927464069,1.3535,2354.0,2353.3,3.4254]
[1725927465072,0.04278984,2353.9,2353.3,3.4254]
[1725927467001,0.04278984,2353.9,2353.3,8.38928539]
[1725927467202,0.04278984,2353.9,2353.4,0.4254]
[1725927467403,0.04278984,2353.9,2353.4,1.54574216]
[1725927469143,1.3535,2354.2,2353.4,1.54574216]
[1725927469442,0.04274567,2353.8,2353.4,1.54574216]
[1725927469643,1.3535,2354.2,2353.4,1.54574216]
[1725927470015,0.04279268,2354.1,2353.4,1.54574216]
[1725927470211,0.04279268,2354.1,2353.5,0.62527691]
[1725927471003,0.04279268,2354.1,2353.6,0.08495778]
[1725927471199,0.04279268,2354.1,2353.6,2.08495778]
[1725927471740,7.32,2354.3,2353.6,4.44345778]
[1725927471957,1.701916,2356.9,2354.2,2.0]
[1725927471958,7.32,2354.7,2354.2,2.0]
[1725927472108,1.3535,2354.9,2354.2,2.0]
[1725927472303,1.3535,2354.9,2354.2,2.4254]
[1725927472518,1.3535,2354.9,2354.3,0.71415144]
[1725927472807,1.3535,2354.9,2354.3,3.71415144]
[1725927480557,0.03999415,2354.8,2354.3,3.71415144]
[1725927487655,0.03999415,2354.8,2354.0,2.3585]
[1725927487656,0.03999415,2354.8,2354.0,5.3585]
[1725927488553,1.3535,2354.7,2353.7,0.4254]
[1725927488751,1.3535,2354.7,2353.0,2.66686378]
[1725927488752,1.3535,2354.5,2353.4,0.4254]
[1725927488919,1.3535,2354.5,2353.4,0.99546709]
[1725927489120,0.04052022,2354.4,2353.4,0.99546709]
[1725927490471,1.3535,2354.3,2353.1,2.14053762]
[1725927490614,1.3535,2354.3,2353.1,0.4254]
[1725927490820,0.03990705,2354.2,2353.1,3.67251442]
[1725927491433,3.28702147,2354.2,2353.1,0.4254]
[1725927491745,1.3535,2353.8,2352.7,2.3096]
[1725927491950,0.0396903,2353.7,2352.7,2.3096]
[1725927493081,1.3535,2353.6,2352.7,2.3096]
[1725927493231,1.3535,2353.6,2352.6,5.67251442]
[1725927493232,1.3535,2353.6,2352.6,2.4254]
[1725927493435,7.32,2353.9,2352.6,2.0]
[1725927493436,1.3535,2353.4,2352.6,2.0]
[1725927493632,0.46383404,2353.3,2352.6,2.0]
[1725927493862,0.5013397,2353.3,2352.4,2.4815]
[1725927494438,0.5013397,2353.3,2352.5,0.08500138]
[1725927494439,0.03750566,2353.3,2352.5,0.08500138]
[1725927495575,0.03750566,2353.3,2352.6,5.24711442]
[1725927495866,0.03750566,2353.3,2352.8,3.24711442]
[1725927496074,0.03750566,2353.3,2352.9,0.08498518]
[1725927496226,8.6735,2353.6,2352.9,0.08498518]
[1725927496429,0.03737919,2353.2,2352.9,0.41819514]
[1725927496644,8.6735,2353.6,2352.9,0.41819514]
[1725927496881,0.03737001,2353.1,2352.9,0.41819514]
[1725927497079,8.6735,2353.6,2352.9,0.33320996]
[1725927497278,8.6735,2353.6,2352.7,3.0]
[1725927497651,0.03750282,2353.5,2352.7,3.0]
[1725927497987,1.3535,2353.4,2352.5,0.4254]
[1725927498185,1.3535,2353.2,2352.4,0.4254]
[1725927498473,0.03748407,2353.1,2352.4,0.4254]
[1725927498677,0.03748407,2353.1,2352.4,0.66794]
[1725927499080,1.3535,2353.0,2352.2,0.4254]
[1725927499399,0.03734432,2352.9,2352.2,0.4254]
[1725927499564,0.03734432,2352.9,2352.2,3.4254]
[1725927499745,1.3535,2353.0,2352.2,3.4254]
[1725927503757,1.3535,2353.0,2352.2,3.0]
[1725927503940,1.3535,2353.0,2352.3,0.54845]
[1725927507854,3.24711442,2352.9,2352.0,0.4254]
[1725927508157,3.24711442,2352.9,2351.6,2.4254]
[1725927508158,1.3535,2352.8,2351.6,2.4254]
[1725927508586,1.3535,2352.7,2351.3,2.4892]
[1725927508752,1.3535,2352.7,2351.4,0.44892]
[1725927508955,1.3535,2352.7,2351.0,2.5735702]
[1725927509205,1.3535,2352.5,2351.0,2.5735702]
[1725927509891,1.3535,2351.9,2351.0,0.0843702]
[1725927512568,3.24711442,2351.5,2351.0,0.0843702]
[1725927512755,1.3535,2351.2,2351.0,0.0843702]
[1725927518771,4.60061442,2351.1,2351.0,0.0843702]
[1725927521219,1.3535,2351.1,2351.0,0.0843702]
[1725927524576,4.60061442,2351.1,2351.0,0.0843702]
[1725927525513,1.3535,2351.1,2351.0,0.0843702]
[1725927526787,4.60061442,2351.1,2351.0,0.0843702]
[1725927526991,1.81356144,2351.1,2351.0,0.0843702]
[1725927527207,7.32,2351.7,2351.1,2.3852]
[1725927527422,1.3535,2351.8,2351.1,2.3852]
[1725927527629,1.3535,2351.8,2351.2,0.08505196]
[1725927528161,7.32,2352.0,2351.1,2.3852]
[1725927528636,7.32,2352.0,2351.2,2.6141308]
[1725927528796,7.32,2352.0,2351.3,3.58497094]
[1725927528994,8.6735,2352.3,2351.3,3.58497094]
[1725927529197,7.32,2352.3,2351.4,2.91423473]
[1725927529396,7.32,2352.3,2351.6,2.3852]
[1725927529658,7.32,2352.3,2351.7,0.6140302]
[1725927529799,12.44,2352.8,2351.8,6.7223579]
[1725927530004,1.3535,2353.2,2352.1,2.2613]
[1725927530302,4.60061442,2353.2,2352.1,4.2613]
[1725927530530,4.60061442,2353.2,2352.2,3.08500826]
[1725927530753,4.60061442,2353.2,2352.3,0.08500826]
[1725927530899,4.60061442,2353.2,2352.3,0.73077123]
[1725927531350,4.60061442,2353.2,2352.3,0.64576297]
[1725927532046,4.60061442,2353.2,2352.3,0.73077632]
[1725927532214,1.3535,2353.2,2352.3,0.64576297]
[1725927533317,1.3535,2352.8,2351.8,0.59992302]
[1725927533515,0.55014319,2352.7,2351.6,2.4931]
[1725927533718,1.10014319,2352.7,2351.6,2.4931]
[1725927534360,1.3535,2352.6,2351.6,2.4931]
[1725927534506,3.24711442,2352.4,2351.6,2.4931]
[1725927534709,3.24711442,2352.4,2351.7,0.24931]
[1725927536251,1.3535,2352.6,2351.7,0.24931]
[1725927540255,4.00482076,2352.5,2351.6,2.4931]
[1725927540608,1.3535,2352.6,2351.6,2.4931]
[1725927543869,0.55,2352.7,2351.6,2.4931]
[1725927544097,7.32,2352.8,2351.6,2.4931]
[1725927544355,0.86735,2352.7,2351.8,2.4291]
[1725927548786,1.3535,2353.3,2351.9,2.2566]
[1725927549665,1.3535,2353.2,2351.5,2.3819]
[1725927549873,1.3535,2352.4,2351.5,2.3819]
[1725927550090,0.53583208,2352.3,2351.5,2.3819]
[1725927551676,3.0,2352.7,2351.5,2.3819]
[1725927551882,0.55,2352.6,2351.5,2.3819]
[1725927552053,1.3535,2352.8,2351.5,2.3819]
[1725927552258,5.35832076,2353.1,2351.6,2.2512]
[1725927552461,5.35832076,2353.1,2351.7,0.52512]
[1725927552462,2.37648208,2353.0,2351.7,0.52512]
[1725927552648,5.35832076,2353.1,2351.7,0.52512]
[1725927552991,1.3535,2353.2,2351.8,2.52373078]
[1725927553146,1.3535,2353.5,2351.9,2.4387]
[1725927553482,12.44,2353.6,2352.1,2.4387]
[1725927553691,5.35832076,2353.8,2352.3,2.4428]
[1725927553857,0.53583208,2353.7,2352.5,2.4428]
[1725927554679,3.53583208,2353.7,2352.5,2.4428]
[1725927555066,0.53583208,2353.7,2352.5,2.52780679]
[1725927555258,7.32,2353.7,2352.5,2.52780679]
[1725927556797,7.32,2353.7,2352.7,2.4736]
[1725927556947,7.32,2353.7,2352.8,2.55858242]
[1725927557159,7.32,2353.7,2353.1,2.4736]
[1725927557359,7.32,2353.7,2353.3,2.4486]
[1725927557564,12.44,2354.1,2353.3,2.70195739]
[1725927557565,7.32,2354.1,2353.3,2.70195739]
[1725927557798,1.86497652,2354.0,2352.5,2.4486]
[1725927557962,1.3535,2354.0,2352.6,2.4486]
[1725927558164,7.32,2354.1,2352.6,2.4486]
[1725927558165,11.32482076,2354.1,2352.6,2.4486]
[1725927558466,11.32482076,2354.1,2352.6,5.4486]
[1725927558659,1.68248208,2354.0,2352.8,2.3342]
[1725927558861,1.68248208,2354.0,2352.9,2.3342]
[1725927559320,11.32482076,2354.1,2352.8,0.08499128]
[1725927559321,7.32,2354.1,2353.0,2.41919127]
[1725927559484,7.32,2354.1,2353.0,2.3342]
[1725927560461,7.32,2354.1,2353.1,2.3342]
[1725927561275,7.32,2354.1,2353.2,2.4033743]
[1725927561596,7.32,2354.1,2353.4,2.3184]
[1725927561796,7.32,2354.1,2353.5,0.24033743]
[1725927562008,14.32482076,2354.4,2353.5,0.24033743]
[1725927562714,7.32,2354.4,2353.6,2.3832]
[1725927563003,8.6735,2354.6,2353.6,2.3832]
[1725927563189,8.6735,2354.6,2353.1,3.0]
[1725927563190,7.88870316,2354.6,2353.8,2.4796]
[1725927563501,0.56870316,2354.6,2353.8,2.56456111]
[1725927563663,0.32871086,2354.7,2353.9,0.28269149]
[1725927564066,0.04013265,2354.6,2353.9,0.28269149]
[1725927564903,0.04013265,2354.6,2353.8,2.339]
[1725927565122,0.04013265,2354.6,2354.0,2.339]
[1725927565405,0.0380413,2354.5,2354.1,2.339]
[1725927565606,7.32,2354.8,2354.3,2.339]
[1725927566120,0.03813107,2354.7,2354.3,2.339]
[1725927566482,7.32,2354.8,2354.3,2.339]
[1725927566691,0.03807645,2354.6,2354.3,2.339]
[1725927566980,0.03809211,2354.7,2353.8,3.0]
[1725927567310,0.03809211,2354.7,2353.9,2.373]
[1725927569272,0.03809211,2354.7,2354.0,2.3671]
[1725927569613,0.03809211,2354.7,2354.1,0.23671]
[1725927570791,0.03809211,2354.7,2354.0,2.3671]
[1725927577321,1.39159211,2354.7,2354.0,2.3671]
[1725927578629,1.39159211,2354.7,2353.1,2.2735]
[1725927578630,3.99530437,2354.1,2353.1,2.2735]
[1725927578789,3.99530437,2353.7,2352.9,2.2735]
[1725927578989,0.03812189,2353.6,2352.9,2.2735]
[1725927580504,0.03812189,2353.6,2352.0,2.0]
[1725927580680,1.94162189,2353.6,2352.1,2.3005]
[1725927580883,1.94162189,2353.6,2352.1,2.38550624]
[1725927581171,1.94162189,2353.6,2352.0,2.4254]
[1725927581172,0.59369263,2353.5,2352.3,2.3005]
[1725927581367,0.03762694,2353.4,2352.3,2.3005]
[1725927582108,0.03762694,2353.4,2352.2,0.48109062]
[1725927582109,0.03762694,2353.4,2352.5,2.3568]
[1725927582472,0.03762694,2353.4,2352.6,0.08500149]
[1725927582806,1.3535,2353.9,2352.7,2.3568]
[1725927583007,0.5879289,2353.8,2352.8,0.23568]
[1725927583819,0.5879289,2353.8,2352.8,0.32067569]
[1725927583992,0.5879289,2353.8,2352.9,2.3598]
[1725927584406,0.0379289,2353.8,2352.9,2.3598]
[1725927584706,4.3535,2354.1,2352.9,2.3598]
[1725927585336,0.04294894,2354.0,2352.9,2.3598]
[1725927586520,0.04294894,2354.0,2352.9,2.44478373]
[1725927586833,0.04294894,2354.0,2353.1,2.3801]
[1725927587039,0.04294894,2354.0,2353.1,2.46508365]
[1725927587403,0.04294894,2354.0,2353.2,0.08498364]
[1725927588303,0.04294894,2354.0,2353.1,2.3801]
[1725927591851,0.04294894,2354.0,2353.1,2.46508359]
[1725927592066,0.04294894,2354.0,2353.3,2.3348]
[1725927592353,7.32,2354.2,2353.4,0.08497191]
[1725927592514,7.32,2354.2,2353.5,2.3348]
[1725927592719,7.32,2354.2,2353.2,0.2709562]
[1725927592720,6.50952925,2355.0,2354.2,2.0]
[1725927592914,0.44530835,2356.1,2353.7,2.3348]
[1725927592915,0.44530835,2356.1,2355.3,2.0]
[1725927593244,0.00088,2356.1,2355.4,4.58055924]
[1725927593448,0.00088,2356.1,2355.5,3.0]
[1725927593737,2.64711984,2356.0,2355.0,0.52839566]
[1725927593951,0.00088,2356.1,2354.9,2.3348]
[1725927594110,0.00088,2356.1,2355.0,3.0]
[1725927594505,0.00088,2356.1,2354.9,2.3348]
[1725927595203,0.00088,2356.1,2354.9,2.41971989]
[1725927596498,0.03743634,2356.0,2354.9,2.41971989]
[1725927596698,0.03743634,2356.0,2354.9,2.3348]
[1725927597103,0.03743634,2356.0,2355.0,0.08491518]
[1725927598039,0.03743634,2356.0,2354.5,5.3539]
[1725927598040,1.3535,2355.9,2354.5,5.3539]
[1725927598248,0.55,2355.8,2354.5,2.3539]
[1725927600671,0.03835737,2355.7,2354.5,2.3539]
[1725927600831,0.03835737,2355.7,2354.6,0.08492702]
[1725927601033,0.03835737,2355.7,2354.5,5.3539]
[1725927601240,0.03835737,2355.7,2354.5,3.0]
[1725927601440,0.03835737,2355.7,2354.2,2.4246]
[1725927601739,1.3535,2355.6,2353.8,5.13796055]
[1725927601959,1.3535,2354.9,2353.8,2.72206055]
[1725927602129,1.3535,2354.9,2353.4,2.4159]
[1725927602337,4.49137716,2354.7,2353.4,2.4159]
[1725927602683,0.58824076,2354.8,2353.0,5.03178602]
[1725927602684,4.49137716,2354.4,2353.0,5.03178602]
[1725927602978,0.03798495,2354.3,2352.7,0.66481609]
[1725927603284,3.55,2354.3,2352.7,0.66481609]
[1725927603498,0.55,2354.3,2352.9,6.49137716]
[1725927603646,0.55,2354.4,2353.0,2.3635]
[1725927604037,0.55,2354.4,2353.0,5.3635]
[1725927604581,0.55,2354.4,2353.1,0.08497505]
[1725927604793,0.24114618,2354.4,2353.1,0.08497505]
[1725927604989,0.24114618,2354.4,2353.0,5.3635]
[1725927607073,0.24114618,2354.4,2353.2,6.49137716]
[1725927607273,0.24114618,2354.4,2353.3,3.0]
[1725927607499,0.24114618,2354.4,2353.4,0.0849653]
[1725927607705,0.24114618,2354.4,2353.3,3.0]
[1725927607920,0.24114618,2354.4,2353.0,5.3635]
[1725927608717,0.24114618,2354.4,2353.1,0.08497817]
[1725927608903,1.3535,2354.5,2353.1,0.08497817]
[1725927609715,1.3535,2354.5,2353.0,5.3635]
[1725927611001,1.3535,2354.5,2353.1,0.08496716]
[1725927611785,1.3535,2354.5,2353.2,2.0]
[1725927612115,1.3535,2354.5,2353.2,5.0]
[1725927615227,1.3535,2354.5,2353.3,0.08495667]
[1725927615581,1.3535,2354.5,2353.6,2.438]